bitfinex/quotes_ETHUSD_20210701
["timestamp","ask_amount","ask_price","bid_price","bid_amount"]
[1625122120147,20.06583125,2173.0,2171.3,0.14615147]
[1625122120289,5.01,2172.8,2171.3,0.14615147]
[1625122120398,10.52069586,2172.8,2171.3,0.14615147]
[1625122120491,26.03028952,2172.8,2171.3,0.14615147]
[1625122120589,26.29068952,2172.8,2171.3,0.14615147]
[1625122120687,3.4518,2172.7,2171.3,0.14615147]
[1625122120787,5.16621643,2172.6,2171.3,0.14615147]
[1625122120989,0.43504331,2172.5,2171.3,0.14615147]
[1625122121090,6.37094331,2172.5,2171.3,0.14615147]
[1625122121188,6.90435,2172.0,2171.3,0.14615147]
[1625122121390,5.90435,2172.0,2171.3,0.14615147]
[1625122121888,4.35417612,2171.9,2171.3,0.14615147]
[1625122121990,5.90435,2172.0,2171.3,0.14615147]
[1625122122292,9.20456,2172.4,2171.3,0.14615147]
[1625122122394,4.28894855,2172.3,2171.3,5.06875147]
[1625122122546,9.21144045,2172.8,2171.4,5.67253204]
[1625122122644,0.00848045,2172.8,2171.7,0.30863121]
[1625122122744,0.00848045,2172.8,2171.7,1.19363121]
[1625122122839,4.5e-07,2172.8,2171.8,5.92672004]
[1625122122937,8.0254,2173.7,2172.4,0.30186464]
[1625122123044,8.0254,2173.7,2172.4,4.65946464]
[1625122123140,8.0254,2173.7,2172.5,0.26000391]
[1625122123241,8.0254,2173.7,2172.5,0.40000391]
[1625122123349,6.89714,2174.1,2172.5,7.29760391]
[1625122123437,6.89714,2174.1,2172.5,12.73425331]
[1625122123772,5.31706368,2174.0,2172.7,5.02295275]
[1625122124077,5.31706368,2174.0,2172.6,0.23856306]
[1625122124078,5.31706368,2174.0,2172.6,0.00784516]
[1625122124278,5.31706368,2174.0,2172.4,0.30953215]
[1625122124375,6.90008,2173.3,2172.1,0.3192768]
[1625122124475,4.35860624,2173.6,2172.3,0.30229504]
[1625122124577,9.19956,2173.7,2172.3,0.30229504]
[1625122124674,4.34041844,2173.8,2172.3,0.44229504]
[1625122124790,4.31799181,2174.0,2172.3,0.44229504]
[1625122124888,4.2444393,2174.0,2172.3,0.45003493]
[1625122124990,4.5695658,2174.2,2172.4,0.22687716]
[1625122125089,4.50916295,2174.0,2172.4,0.22687716]
[1625122125189,8.43279941,2174.3,2172.5,0.14]
[1625122125291,11.4987,2174.5,2172.6,0.30472351]
[1625122125390,4.39248901,2174.4,2172.6,0.30472351]
[1625122125502,4.39248901,2174.4,2172.9,0.23955862]
[1625122125592,6.89701,2174.3,2172.9,3.57005862]
[1625122125690,11.4987,2174.5,2173.1,5.01]
[1625122125789,11.4971,2175.0,2173.1,5.01]
[1625122125891,11.4971,2175.0,2173.2,11.59330638]
[1625122125991,4.57271733,2174.9,2173.2,5.52185837]
[1625122126092,4.57271733,2174.9,2173.3,5.01]
[1625122126190,4.57271733,2174.9,2173.4,0.28914642]
[1625122126296,15.0,2174.8,2173.4,0.28914642]
[1625122126392,6.69304755,2174.9,2173.4,0.28914642]
[1625122126491,6.69304755,2174.9,2173.3,0.23073244]
[1625122126492,2.2001,2174.8,2173.3,0.23073244]
[1625122126595,3.44876,2174.6,2173.2,13.01]
[1625122126691,0.55221532,2174.5,2173.2,8.0]
[1625122126793,6.89768,2174.0,2172.9,3.3305]
[1625122126893,4.73125937,2173.9,2172.9,3.3305]
[1625122127095,5.34845142,2173.7,2172.4,2.472]
[1625122127185,5.24578036,2173.7,2171.7,0.30863121]
[1625122127389,0.40844982,2173.6,2171.7,0.30863121]
[1625122127487,1.74854982,2173.6,2171.7,0.30863121]
[1625122127582,4.92709126,2173.5,2171.7,0.30863121]
[1625122127686,4.97037593,2173.5,2171.7,0.30863121]
[1625122127886,6.90053,2173.2,2172.0,6.89941]
[1625122128085,11.24722291,2173.2,2172.0,6.89941]
[1625122128186,4.35540798,2173.2,2172.0,6.89941]
[1625122128286,4.91566393,2173.6,2172.0,6.89941]
[1625122129091,6.89919,2173.5,2172.0,6.89941]
[1625122129320,9.19954,2173.7,2171.8,6.0305]
[1625122129321,0.56563142,2173.3,2172.1,0.14]
[1625122129415,4.73476627,2173.2,2172.1,0.14]
[1625122129515,9.19954,2173.7,2172.1,0.14]
[1625122129613,3.73682072,2173.6,2172.1,0.14]
[1625122129708,9.19954,2173.7,2172.1,0.14]
[1625122130510,13.25329915,2173.7,2172.1,0.14]
[1625122130610,9.19954,2173.7,2172.1,0.14]
[1625122130913,9.20012,2173.3,2172.3,5.53203959]
[1625122131015,6.89852,2173.5,2172.3,5.81997399]
[1625122131117,6.89852,2173.5,2172.5,5.01]
[1625122131416,6.89852,2173.5,2172.5,0.14]
[1625122131554,7.394306,2173.5,2172.5,0.14]
[1625122131657,0.495786,2173.5,2172.5,0.14]
[1625122131754,17.06643375,2173.7,2172.5,0.14]
[1625122131755,12.64985,2173.7,2172.5,0.14]
[1625122132051,6.90046,2173.0,2172.5,0.14]
[1625122132456,12.64985,2173.7,2172.5,0.14]
[1625122132552,9.19954,2173.7,2172.5,0.14]
[1625122132754,9.19954,2173.7,2171.8,5.35086561]
[1625122132755,0.47754188,2173.6,2171.9,0.26147411]
[1625122132854,0.47754188,2173.6,2171.8,0.27887729]
[1625122133156,4.88673173,2174.0,2171.8,5.85092733]
[1625122133254,9.1996,2173.4,2171.7,0.30863121]
[1625122134080,9.1996,2173.4,2171.8,5.01]
[1625122134282,0.5288305,2173.8,2172.5,6.8996]
[1625122134383,6.8996,2174.0,2172.5,6.8996]
[1625122134484,0.43127213,2173.9,2172.6,0.27550665]
[1625122134584,5.41247302,2173.8,2172.6,0.27550665]
[1625122134684,20.42758822,2173.8,2171.9,9.19946]
[1625122134785,5.01,2173.7,2171.9,9.19946]
[1625122134882,15.0,2173.6,2171.9,9.19946]
[1625122134981,5.46610734,2173.6,2171.9,9.19946]
[1625122135084,5.11,2173.7,2171.9,9.19946]
[1625122135183,5.01,2173.7,2171.9,9.19946]
[1625122135482,1.51226111,2173.8,2172.6,0.9]
[1625122135583,6.90061,2173.7,2172.6,0.9]
[1625122136244,10.12321,2173.7,2172.6,0.9]
[1625122136345,0.49089559,2173.6,2172.6,0.9]
[1625122136644,6.90103,2173.3,2172.6,0.9]
[1625122136749,27.25,2173.2,2171.9,9.19946]
[1625122136846,27.33,2173.2,2171.2,16.41197277]
[1625122136949,27.33,2173.2,2171.2,11.81224277]
[1625122137045,4.5450196,2173.1,2171.2,11.81224277]
[1625122137494,5.01,2172.9,2171.2,0.31177277]
[1625122137693,4.99406249,2172.8,2171.2,0.31177277]
[1625122137895,4.99406249,2172.8,2171.3,6.90258]
[1625122137994,0.56446947,2172.9,2171.3,6.90258]
[1625122137995,4.84150969,2172.9,2171.3,6.90258]
[1625122138806,4.84150969,2172.9,2171.2,0.01330222]
[1625122139214,6.90261,2172.6,2171.2,6.91589222]
[1625122139311,4.59952876,2173.1,2171.3,0.51687954]
[1625122139412,4.48015516,2173.3,2171.4,0.01405154]
[1625122139513,9.20172,2173.4,2171.4,6.91855449]
[1625122139615,4.37809759,2173.3,2171.5,0.29162748]
[1625122139712,5.94311899,2173.8,2171.5,0.43162748]
[1625122139914,5.16093607,2173.9,2171.9,0.30238903]
[1625122140014,4.821866,2173.8,2172.0,0.37223254]
[1625122140108,4.821866,2173.8,2172.0,0.51223254]
[1625122140309,25.5,2173.7,2171.9,1.26422803]
[1625122140405,25.5,2173.7,2172.0,0.44197765]
[1625122140547,4.6529737,2173.6,2172.0,1.24877765]
[1625122140636,4.6529737,2173.6,2172.1,5.01]
[1625122140851,4.61762029,2173.9,2172.1,0.14]
[1625122140933,4.61490088,2173.9,2172.1,0.14]
[1625122141033,4.61490088,2173.9,2172.1,5.15]
[1625122141134,6.89899,2173.8,2172.4,6.89891]
[1625122141239,4.67697053,2173.7,2172.2,5.01]
[1625122141336,4.63504215,2173.7,2172.2,5.01]
[1625122141439,4.66578483,2173.9,2172.3,5.01]
[1625122142035,15.0,2173.9,2172.4,5.01]
[1625122142134,20.3123311,2173.9,2172.3,5.01]
[1625122142241,9.20137,2173.2,2171.7,5.01]
[1625122142335,4.96026545,2173.1,2171.3,0.44561237]
[1625122142440,4.96907472,2173.1,2171.3,0.44561237]
[1625122142634,4.96026545,2173.1,2171.3,0.44561237]
[1625122142798,4.95339298,2173.1,2171.3,0.44561237]
[1625122143002,4.78754757,2173.1,2171.3,0.44561237]
[1625122143302,4.78754757,2173.1,2171.4,9.20229]
[1625122143303,11.68852757,2173.1,2171.4,9.20229]
[1625122143498,6.90098,2173.1,2171.5,5.5251013]
[1625122143600,6.90098,2173.1,2171.4,9.20229]
[1625122143698,6.90098,2173.1,2171.5,5.66289347]
[1625122143798,6.90098,2173.1,2171.4,9.20229]
[1625122143799,6.90098,2173.1,2171.7,5.44139248]
[1625122143899,6.90098,2173.1,2171.6,11.14479]
[1625122143998,6.90098,2173.1,2171.6,11.28479]
[1625122144196,6.90098,2173.1,2171.8,5.01]
[1625122145032,6.90098,2173.1,2172.0,6.90004]
[1625122145131,9.20166,2173.6,2171.9,14.68783499]
[1625122145232,9.20166,2173.6,2171.9,18.42523499]
[1625122145331,9.20166,2173.6,2172.1,5.01]
[1625122145430,4.20166,2173.6,2172.2,5.41664639]
[1625122145531,4.20166,2173.6,2172.1,5.01]
[1625122145630,4.20166,2173.6,2172.2,5.01]
[1625122145931,4.20166,2173.6,2172.1,5.01]
[1625122146232,6.90033,2173.1,2172.1,5.01]
[1625122146339,6.90033,2173.1,2172.2,5.01]
[1625122146535,6.90033,2173.1,2172.1,13.01]
[1625122146632,6.90033,2173.1,2172.1,5.01]
[1625122146732,6.90033,2173.1,2172.1,13.01]
[1625122147310,3.44999,2173.9,2172.3,6.89889]
[1625122147412,3.44999,2173.9,2172.4,5.01]
[1625122147509,3.44999,2173.9,2172.5,5.01]
[1625122147711,11.50375,2174.0,2172.6,4.96]
[1625122147812,14.9532,2174.0,2172.6,4.96]
[1625122147909,14.9532,2174.0,2172.5,8.14]
[1625122148009,33.4030479,2174.0,2172.5,8.14]
[1625122148209,18.4030479,2174.0,2172.5,8.14]
[1625122148314,6.89985,2173.3,2172.5,8.14]
[1625122148413,9.19853,2173.7,2172.5,8.14]
[1625122148511,11.50375,2174.0,2172.5,11.2937]
[1625122148610,11.50375,2174.0,2172.6,5.54523704]
[1625122148709,11.50375,2174.0,2172.5,11.1537]
[1625122148811,11.50375,2174.0,2172.7,0.14]
[1625122149219,11.50375,2174.0,2172.7,5.15]
[1625122149552,11.50375,2174.0,2172.2,9.198]
[1625122149553,6.89906,2173.5,2172.2,9.198]
[1625122149704,0.16835828,2173.4,2171.9,9.34006]
[1625122149793,3.7495,2173.5,2171.9,9.34006]
[1625122149895,4.8162,2173.5,2171.9,0.14]
[1625122149995,4.83166342,2173.5,2171.9,0.14]
[1625122150098,4.83982367,2173.5,2171.9,0.14]
[1625122150196,4.84008002,2173.5,2171.9,0.14]
[1625122150292,3.7495,2173.5,2171.9,0.14]
[1625122150595,6.90045,2173.0,2171.9,7.04035]
[1625122150895,12.65149,2173.6,2171.9,7.04035]
[1625122150994,12.65149,2173.6,2171.9,12.54243463]
[1625122151095,12.65149,2173.6,2172.0,0.14]
[1625122151207,3.45057,2173.3,2172.0,0.14]
[1625122151295,4.2727,2173.3,2171.9,0.14]
[1625122151397,5.01,2173.1,2171.9,0.14]
[1625122151496,5.01,2173.1,2171.3,10.0679]
[1625122151594,6.90312,2172.2,2171.3,10.0679]
[1625122151693,6.90312,2172.2,2171.2,0.01330222]
[1625122152464,5.22610011,2172.1,2171.2,0.01330222]
[1625122152749,4.31070103,2171.7,2171.2,0.01330222]
[1625122152848,4.66908175,2171.6,2171.2,0.01330222]
[1625122153049,4.66908175,2171.6,2171.2,2.22e-06]
[1625122153153,5.21081378,2171.6,2171.2,2.22e-06]
[1625122153250,5.01,2171.4,2171.2,2.22e-06]
[1625122153351,5.03369684,2171.3,2171.2,2.22e-06]
[1625122153458,20.51622518,2171.3,2170.7,2.22e-06]
[1625122153652,5.01,2171.1,2170.7,2.22e-06]
[1625122153902,5.01,2170.8,2170.7,2.22e-06]
[1625122154072,5.01,2170.8,2170.0,9.14e-06]
[1625122154073,26.41051222,2170.8,2170.0,9.14e-06]
[1625122154168,27.28372539,2170.8,2170.0,9.14e-06]
[1625122154269,3.45646,2170.6,2170.0,9.14e-06]
[1625122154371,5.01,2170.4,2170.0,9.14e-06]
[1625122154470,20.45535647,2170.3,2170.0,9.14e-06]
[1625122154570,5.01,2170.3,2170.0,9.14e-06]
[1625122154669,0.08,2170.2,2170.0,9.14e-06]
[1625122154772,1.3706,2170.4,2170.0,9.14e-06]
[1625122154871,6.91217,2170.2,2170.0,9.14e-06]
[1625122155275,32.39029674,2170.1,2168.7,1.944]
[1625122155375,8.46687,2169.9,2168.7,1.944]
[1625122155471,5.315364,2169.8,2168.7,1.944]
[1625122155574,0.25563814,2169.8,2168.7,1.944]
[1625122155671,0.25563814,2169.8,2168.0,6.41293491]
[1625122155771,0.25563814,2169.8,2168.0,1.0]
[1625122155969,6.91435,2169.3,2168.0,1.0]
[1625122156072,10.82585,2169.3,2169.0,0.9]
[1625122156318,3.9115,2169.3,2169.0,0.9]
[1625122156416,3.9115,2169.3,2169.0,0.8]
[1625122156917,1.1477,2169.5,2169.0,0.8]
[1625122157023,4.32386559,2169.2,2168.0,1.0]
[1625122157121,5.00761594,2169.4,2168.0,1.0]
[1625122157223,5.42353651,2169.2,2168.0,1.0]
[1625122157329,0.20142409,2169.1,2168.0,1.0]
[1625122157423,0.30092672,2168.9,2168.0,1.0]
[1625122157519,11.0187294,2168.9,2168.0,1.0]
[1625122157719,5.01,2168.7,2168.0,1.0]
[1625122157822,0.06,2168.8,2168.0,1.0]
[1625122157919,4.67052921,2168.9,2168.0,1.0]
[1625122158021,4.48582714,2168.8,2168.0,1.0]
[1625122158120,5.3806264,2168.8,2168.0,1.0]
[1625122158225,27.25,2168.3,2167.0,1.0]
[1625122158320,5.26162605,2168.2,2167.0,1.0]
[1625122158420,0.24759722,2168.1,2167.0,1.0]
[1625122158595,5.01,2168.0,2167.0,1.0]
[1625122158689,0.19575228,2167.9,2167.0,1.0]
[1625122158911,1.37130917,2168.0,2167.0,1.0]
[1625122158992,0.0081769,2167.9,2167.0,1.0]
[1625122159392,6.9191,2167.5,2167.0,1.0]
[1625122159499,10.6456,2167.5,2167.0,1.0]
[1625122159910,4.4834524,2167.4,2167.0,1.0]
[1625122160493,4.4834524,2167.4,2166.1,0.27315385]
[1625122160494,6.92034,2167.3,2166.1,0.27315385]
[1625122160691,4.92114115,2167.2,2166.1,0.27315385]
[1625122160796,0.192367,2167.2,2166.1,0.27315385]
[1625122160897,0.192367,2167.2,2166.1,0.22315385]
[1625122160996,0.17715012,2167.4,2166.1,0.22315385]
[1625122161399,0.01080759,2167.4,2166.1,0.22315385]
[1625122161598,0.01080759,2167.4,2166.1,7.14063385]
[1625122161699,0.01080759,2167.4,2166.1,0.22315385]
[1625122162698,6.92062,2167.2,2166.1,0.22315385]
[1625122162800,11.87532,2167.2,2166.1,0.22315385]
[1625122163249,2e-05,2167.2,2166.1,0.22315385]
[1625122163351,2e-05,2167.2,2166.1,5.40582659]
[1625122163449,3.7518,2167.3,2166.2,27.25]
[1625122163450,2.53222,2167.3,2166.2,27.25]
[1625122163549,2.53222,2167.3,2166.3,5.22232051]
[1625122163653,2.53222,2167.3,2166.2,27.25]
[1625122163747,0.01080759,2167.4,2166.2,37.44527]
[1625122163849,0.01080759,2167.4,2166.2,33.0239]
[1625122163948,0.01080759,2167.4,2166.4,0.08]
[1625122164042,0.01080759,2167.4,2166.2,29.746]
[1625122164145,0.01080759,2167.4,2166.4,5.01]
[1625122164345,9.98433915,2168.4,2166.4,5.01]
[1625122164648,0.21676315,2168.3,2166.4,5.01]
[1625122164747,3.95736315,2168.3,2166.1,0.22315385]
[1625122164848,6.40280918,2168.2,2166.1,0.22315385]
[1625122164954,0.59324048,2167.5,2166.1,0.22315385]
[1625122165051,5.44145551,2167.4,2166.1,0.22315385]
[1625122165152,0.18045044,2167.3,2166.1,0.22315385]
[1625122165330,5.01,2167.2,2166.1,0.22315385]
[1625122165419,9.63051994,2167.2,2166.1,0.22315385]
[1625122165523,5.17540872,2167.2,2166.1,0.22315385]
[1625122165619,0.16540872,2167.2,2166.4,0.9]
[1625122165721,0.0088975,2167.3,2166.4,0.9]
[1625122165821,10.01875337,2167.5,2166.4,0.9]
[1625122166021,6.92145,2167.1,2166.4,0.9]
[1625122166326,4.64220077,2167.0,2166.4,0.9]
[1625122166422,9.00850077,2167.0,2166.4,0.9]
[1625122166520,9.48742229,2167.0,2166.4,0.9]
[1625122166673,9.48742229,2167.0,2166.4,0.8]
[1625122166821,4.84522152,2167.0,2166.4,0.8]
[1625122167020,27.25,2166.9,2166.1,0.22315385]
[1625122167226,4.84522152,2167.0,2166.1,0.22315385]
[1625122167326,4.3663,2167.0,2166.1,0.22315385]
[1625122167434,4.40840087,2166.9,2166.1,0.22315385]
[1625122167561,4.3663,2167.0,2166.1,0.22315385]
[1625122167764,0.8052,2167.1,2166.1,0.17315385]
[1625122168454,4.37131674,2167.0,2166.1,0.17315385]
[1625122168554,8.88571674,2167.0,2166.1,0.17315385]
[1625122168654,4.25463184,2166.9,2166.1,0.17315385]
[1625122168754,4.30713488,2167.0,2166.1,0.17315385]
[1625122168958,0.8052,2167.1,2166.1,0.17315385]
[1625122169055,4.87690879,2167.4,2166.1,0.17315385]
[1625122169354,5.01,2167.2,2166.1,0.17315385]
[1625122169551,4.43045464,2167.1,2166.1,0.17315385]
[1625122169912,4.74365245,2167.1,2166.1,0.17315385]
[1625122170112,5.01,2166.9,2166.1,0.07315385]
[1625122170215,4.93588364,2166.8,2166.1,0.07315385]
[1625122170315,5.14136228,2166.8,2166.1,0.07315385]
[1625122170408,0.42294113,2166.7,2166.1,0.07315385]
[1625122170708,5.01,2166.6,2166.1,0.07315385]
[1625122170820,9.28815681,2166.6,2166.1,0.07315385]
[1625122170921,1.0181,2166.7,2166.1,0.02315385]
[1625122171111,4.31710539,2166.6,2166.1,0.02315385]
[1625122171211,1.0181,2166.7,2166.1,0.02315385]
[1625122171510,1.0181,2166.7,2166.0,0.97315385]
[1625122171713,4.40703062,2166.6,2166.0,0.97315385]
[1625122171807,4.49420495,2166.6,2166.0,0.97315385]
[1625122171907,5.01,2166.4,2166.0,0.72315385]
[1625122172090,4.83937024,2167.1,2166.0,0.72315385]
[1625122172186,2.0935,2167.0,2166.0,0.72315385]
[1625122172289,6.92257,2166.8,2166.0,0.72315385]
[1625122172491,0.42963369,2166.7,2166.0,0.72315385]
[1625122172586,4.65911544,2166.7,2166.0,0.72315385]
[1625122172788,0.42963369,2166.7,2166.0,0.67315385]
[1625122172885,4.69260574,2166.7,2166.0,0.67315385]
[1625122172986,5.11588244,2166.7,2166.0,0.67315385]
[1625122173188,0.1,2166.6,2166.0,0.67315385]
[1625122173288,0.73214497,2166.7,2166.0,0.67315385]
[1625122173387,6.92243,2166.8,2166.0,0.67315385]
[1625122173993,4.94365121,2167.4,2166.0,4.90905385]
[1625122174093,4.93313431,2167.2,2166.0,4.90905385]
[1625122174189,11.36993794,2167.4,2166.0,4.90905385]
[1625122174423,6.179,2167.4,2166.0,12.90905385]
[1625122174523,12.6904169,2167.5,2166.0,18.2419376]
[1625122174524,9.22853,2167.5,2166.0,18.2419376]
[1625122174630,9.22853,2167.5,2166.1,5.51813995]
[1625122174723,3.88020437,2168.2,2166.0,12.90905385]
[1625122174926,5.30858636,2168.1,2166.0,18.35186368]
[1625122175022,5.30858636,2168.1,2166.0,12.90905385]
[1625122175176,6.09395068,2168.1,2166.0,4.90905385]
[1625122175275,5.30077544,2167.8,2166.0,12.90905385]
[1625122175372,6.02630148,2167.8,2166.0,12.90905385]
[1625122175474,7.81470148,2167.8,2166.0,12.90905385]
[1625122175775,6.9206,2167.3,2166.0,4.90905385]
[1625122175872,4.73796834,2167.2,2166.0,4.90905385]
[1625122175985,4.77101675,2167.2,2166.0,4.90905385]
[1625122176274,6.9206,2167.3,2166.0,4.90905385]
[1625122176581,4.62593197,2167.7,2166.0,4.90905385]
[1625122177472,6.91964,2167.6,2166.0,4.90905385]
[1625122177573,11.53775,2167.9,2166.0,4.90905385]
[1625122177678,0.00885168,2168.1,2166.1,5.54238931]
[1625122177777,4.89304565,2168.0,2166.1,0.14]
[1625122177874,0.00885168,2168.1,2166.1,0.14]
[1625122177977,0.00885168,2168.1,2166.2,1.944]
[1625122178072,0.50459538,2168.2,2166.2,1.944]
[1625122178276,11.53515,2168.3,2166.3,5.50868803]
[1625122178376,11.53515,2168.3,2166.3,5.72833062]
[1625122178474,11.53515,2168.3,2166.2,0.01977871]
[1625122178475,6.91866,2168.0,2166.2,0.01977871]
[1625122178576,10.4241,2168.4,2166.1,6.39153408]
[1625122178681,21.57924,2168.7,2166.3,0.30317699]
[1625122178814,21.57924,2168.7,2166.4,0.02888037]
[1625122179020,22.01894423,2168.7,2166.4,0.16888037]
[1625122179116,11.97244423,2168.7,2166.4,5.69296473]
[1625122179510,1.636,2168.4,2166.4,0.16888037]
[1625122179613,6.91853,2168.0,2166.4,0.14]
[1625122179710,7.50814923,2168.0,2166.3,1.3728]
[1625122179812,0.58961923,2168.0,2166.1,0.00632319]
[1625122179911,3.56164254,2168.6,2166.4,0.14]
[1625122179912,3.7268598,2168.6,2166.4,0.14]
[1625122180014,8.55160899,2168.6,2166.4,4.8932]
[1625122180109,4.82152238,2168.6,2166.5,0.14]
[1625122180210,0.54053693,2168.5,2166.5,0.14]
[1625122180314,3.55366037,2168.5,2166.5,0.14]
[1625122180715,6.9191,2167.7,2166.5,0.14]
[1625122180820,9.22485,2168.1,2166.5,0.14]
[1625122180913,0.00860822,2168.6,2166.5,4.3816]
[1625122181118,4.84587424,2168.6,2166.5,4.3816]
[1625122181262,4.83726602,2168.6,2166.5,4.3816]
[1625122181363,3.04365488,2168.5,2166.5,9.84937685]
[1625122181460,3.04365488,2168.5,2166.5,4.3816]
[1625122181562,18.4742106,2168.5,2166.6,5.27985196]
[1625122181661,3.7101475,2168.4,2166.6,5.27985196]
[1625122181861,3.7101475,2168.4,2166.5,0.14]
[1625122181862,9.22424,2168.3,2166.7,5.59862897]
[1625122181965,13.63502898,2168.3,2166.7,4.9191]
[1625122182063,13.63502898,2168.3,2166.8,0.14]
[1625122182364,13.63502898,2168.3,2166.6,10.483]
[1625122182365,13.63502898,2168.3,2166.6,2.483]
[1625122182467,3.64580087,2168.2,2166.6,1.0892]
[1625122182563,5.35033646,2168.1,2166.6,1.0892]
[1625122182662,0.20126591,2168.0,2166.6,1.0892]
[1625122183061,0.20126591,2168.0,2166.2,0.14]
[1625122183164,5.01,2167.9,2166.2,0.14]
[1625122183337,6.92016,2167.2,2166.2,0.14]
[1625122183518,5.01,2167.0,2166.2,0.14]
[1625122183817,6.92016,2167.2,2166.2,0.14]
[1625122184018,5.01,2167.0,2166.2,0.14]
[1625122184114,5.01,2166.9,2166.2,0.14]
[1625122184413,5.01,2167.0,2166.2,0.14]
[1625122184515,5.01,2166.9,2166.2,0.14]
[1625122184614,5.01,2167.0,2166.2,0.14]
[1625122184815,5.01,2166.9,2166.2,0.14]
[1625122185116,5.01,2167.2,2166.2,0.14]
[1625122185217,5.01,2167.1,2166.2,0.14]
[1625122185514,5.01,2167.2,2166.2,0.14]
[1625122185825,0.55746909,2167.1,2166.2,0.14]
[1625122185929,6.92232,2166.7,2166.2,0.14]
[1625122186227,5.01,2167.2,2166.2,0.14]
[1625122186324,5.01,2167.1,2166.2,0.14]
[1625122186526,5.11,2167.1,2166.2,0.14]
[1625122186728,5.01,2167.1,2166.2,0.14]
[1625122186839,5.01,2167.1,2166.2,5.41676889]
[1625122186929,6.92074,2167.1,2166.2,5.41676889]
[1625122187030,6.92074,2167.1,2166.2,0.14]
[1625122187132,3.46078,2167.8,2166.2,0.14]
[1625122187227,3.46078,2167.8,2166.2,4.0648]
[1625122187324,5.13641193,2167.7,2166.2,4.0648]
[1625122187527,3.97355317,2168.0,2166.2,4.0648]
[1625122187528,4.45806327,2167.9,2166.2,4.0648]
[1625122187629,16.67298338,2168.1,2166.3,6.03886746]
[1625122187630,16.66068668,2168.1,2166.3,6.03886746]
[1625122187732,11.93781179,2168.1,2166.3,6.03886746]
[1625122187872,5.02841583,2168.0,2166.4,0.14]
[1625122187972,6.91882,2167.7,2166.3,6.9185]
[1625122188071,6.91882,2167.7,2166.5,0.14]
[1625122188272,11.53483,2168.1,2166.5,0.14]
[1625122188467,11.53385,2168.4,2166.6,0.1]
[1625122188573,11.53385,2168.4,2166.5,2.79400499]
[1625122188669,11.53385,2168.4,2166.6,5.5420677]
[1625122188770,11.53385,2168.4,2166.6,0.9499]
[1625122188869,11.53385,2168.4,2166.6,1.0899]
[1625122188870,4.94635529,2168.3,2166.6,1.0899]
[1625122188978,4.87221858,2168.3,2166.6,1.0899]
[1625122189277,6.91829,2167.7,2166.6,1.0899]
[1625122189383,9.22436,2168.0,2166.6,1.0899]
[1625122189479,20.20577357,2167.9,2166.6,1.0899]
[1625122189573,5.01,2167.7,2166.6,1.0899]
[1625122189678,4.73254647,2167.6,2166.6,1.0899]
[1625122189823,4.63480762,2167.6,2166.0,0.81315385]
[1625122189922,19.63480762,2167.6,2166.0,0.81315385]
[1625122190042,0.19435684,2167.5,2166.0,0.81315385]
[1625122190149,4.63480762,2167.6,2166.0,0.81315385]
[1625122190248,4.55447257,2167.6,2166.0,0.81315385]
[1625122190349,0.19300171,2167.9,2166.0,0.81315385]
[1625122190451,6.91964,2167.3,2166.0,0.81315385]
[1625122190847,4.37191709,2167.5,2166.0,0.81315385]
[1625122191049,18.46011,2168.1,2166.0,0.81315385]
[1625122191148,5.01,2167.6,2166.0,0.81315385]
[1625122191348,4.81959658,2167.5,2166.0,0.81315385]
[1625122191448,4.65324539,2167.7,2166.0,0.81315385]
[1625122191552,5.01,2167.3,2166.0,0.81315385]
[1625122191650,5.01,2167.5,2166.0,0.81315385]
[1625122191748,4.45400476,2167.4,2166.0,0.81315385]
[1625122191848,5.01,2167.2,2166.0,0.81315385]
[1625122191950,11.92949,2167.2,2166.0,7.73227385]
[1625122192049,4.33978558,2167.1,2166.0,7.73227385]
[1625122192149,5.01,2166.9,2166.0,0.81315385]
[1625122192388,4.6686275,2167.0,2166.0,0.81315385]
[1625122192486,8.1297475,2167.0,2166.0,0.81315385]
[1625122192588,5.01,2166.6,2166.0,0.81315385]
[1625122192785,5.01,2166.8,2166.0,0.81315385]
[1625122193183,5.01,2166.7,2166.0,0.81315385]
[1625122193287,4.83021846,2166.6,2166.0,0.81315385]
[1625122193394,4.83021846,2166.6,2165.7,4.41781495]
[1625122193395,6.92231,2166.3,2165.7,4.41781495]
[1625122193508,33.09382599,2166.2,2165.1,0.14]
[1625122193588,48.37119729,2166.2,2164.8,1.0]
[1625122193690,0.2450139,2166.1,2164.8,1.0]
[1625122193786,7.5067139,2166.1,2164.8,1.0]
[1625122193888,5.46833787,2166.0,2164.8,1.0]
[1625122193986,5.01,2166.0,2164.8,1.0]
[1625122194189,9.26251525,2165.9,2164.8,1.0]
[1625122194289,5.01,2165.5,2164.4,0.14]
[1625122194390,5.01,2165.5,2163.8,27.46107538]
[1625122194391,0.08881083,2165.4,2163.9,1.994]
[1625122194486,0.08881083,2165.4,2163.9,2.134]
[1625122194487,6.92657,2164.8,2163.9,2.134]
[1625122194637,0.08881083,2165.4,2163.9,0.19]
[1625122194727,0.08881083,2165.4,2164.0,0.08]
[1625122194825,4.74135645,2165.4,2164.0,0.08]
[1625122194927,9.75135645,2165.4,2163.9,0.05]
[1625122195023,9.66254562,2165.4,2163.9,0.05]
[1625122195125,0.06969378,2165.3,2164.0,0.14]
[1625122195526,6.92684,2164.7,2164.0,0.14]
[1625122196675,0.06359398,2165.0,2164.0,0.14]
[1625122196867,5.002104,2165.1,2164.0,0.14]
[1625122197441,5.002104,2165.1,2163.9,0.05]
[1625122197530,5.01089191,2165.1,2163.9,0.05]
[1625122197628,5.01,2164.9,2163.9,0.05]
[1625122197726,4.69653488,2164.8,2163.9,0.05]
[1625122197826,6.92879,2164.4,2163.9,0.05]
[1625122198129,6.92879,2164.4,2163.5,0.56729296]
[1625122198130,15.85,2164.3,2163.5,0.56729296]
[1625122198230,4.36096117,2164.2,2163.5,0.56729296]